Workbook

Sheet Hoja1
B1: Nombre y apellidos: ………………………………………………………………… | R1: :
N2: N.º de cifras del primer término | O2: Símbolo | P2: N.º de cifras del segundo término
C3: =IF(O4=Q4,CONCATENATE(N6, " ", O4, " ", Q6),CONCATENATE(N6, " ", O4, " ", P6)) -> 865 + 62,8 | F3: Inventa un problema para esta operación: | Q3: + | R3: x
N4: 3 | O4: + | P4: 2 | Q4: - | R4: ← Parte entera
N5: 0 | P5: 1 | R5: ← Parte decimal
N6: =IF($N$5=0,RANDBETWEEN(10^($N$4-1),10^($N$4)-1),CONCATENATE(RANDBETWEEN(10^($N$4-1),10^($N$4)-1),",",RANDBETWEEN(10^($N$5-1),10^($N$5)-1))) -> 865 | P6: =IF($P$5=0,RANDBETWEEN(10^($P$4-1),10^($P$4)-1),CONCATENATE(RANDBETWEEN(10^($P$4-1),10^($P$4)-1),",",RANDBETWEEN(10^($P$5-1),10^($P$5)-1))) -> 62,8 | Q6: =IF($O$4=$Q$4, IF($P$5=0,RANDBETWEEN(10^($P$4-1),MIN(INT(N6),10^$P$4-1)),CONCATENATE(RANDBETWEEN(10^($P$4-1)-1,MIN(INT(N6)-1,10^$P$4-1)),",",RANDBETWEEN(10^($P$5-1),10^($P$5)-1))),IF($P$5=0,RANDBETWEEN(10^($P$4-1),10^($P$4)-1),CONCATENATE(RANDBETWEEN(10^($P$4-1),10^($P$4)-1),",",RANDBETWEEN(10^($P$5-1),10^($P$5)-1)))) -> 38,9 | R6: =N6-P6*INT(C44) -> -57350.6
N7: =IF($N$5=0,RANDBETWEEN(10^($N$4-1),10^($N$4)-1),CONCATENATE(RANDBETWEEN(10^($N$4-1),10^($N$4)-1),",",RANDBETWEEN(10^($N$5-1),10^($N$5)-1))) -> 304 | P7: =IF($P$5=0,RANDBETWEEN(10^($P$4-1),10^($P$4)-1),CONCATENATE(RANDBETWEEN(10^($P$4-1),10^($P$4)-1),",",RANDBETWEEN(10^($P$5-1),10^($P$5)-1))) -> 54,7 | Q7: =IF($O$4=$Q$4, IF($P$5=0,RANDBETWEEN(10^($P$4-1),MIN(INT(N7),10^$P$4-1)),CONCATENATE(RANDBETWEEN(10^($P$4-1)-1,MIN(INT(N7)-1,10^$P$4-1)),",",RANDBETWEEN(10^($P$5-1),10^($P$5)-1))),IF($P$5=0,RANDBETWEEN(10^($P$4-1),10^($P$4)-1),CONCATENATE(RANDBETWEEN(10^($P$4-1),10^($P$4)-1),",",RANDBETWEEN(10^($P$5-1),10^($P$5)-1)))) -> 91,6 | R7: =N7-P7*INT(G44) -> 304
N8: =IF($N$5=0,RANDBETWEEN(10^($N$4-1),10^($N$4)-1),CONCATENATE(RANDBETWEEN(10^($N$4-1),10^($N$4)-1),",",RANDBETWEEN(10^($N$5-1),10^($N$5)-1))) -> 754 | P8: =IF($P$5=0,RANDBETWEEN(10^($P$4-1),10^($P$4)-1),CONCATENATE(RANDBETWEEN(10^($P$4-1),10^($P$4)-1),",",RANDBETWEEN(10^($P$5-1),10^($P$5)-1))) -> 91,6 | Q8: 96,2 | R8: =N8-P8*INT(K44) -> 754
C10: =IF(O4=Q4,CONCATENATE(N10, " ", O4, " ",Q10),CONCATENATE(N10, " ", O4, " ",P10)) -> 387 + 71,3 | F10: Inventa un problema para esta operación: | N10: =IF($N$5=0,RANDBETWEEN(10^($N$4-1),10^($N$4)-1),CONCATENATE(RANDBETWEEN(10^($N$4-1),10^($N$4)-1),",",RANDBETWEEN(10^($N$5-1),10^($N$5)-1))) -> 387 | P10: 71,3 | Q10: 47,9 | R10: =N10-P10*INT(C51) -> -32268.4
N11: 407 | P11: 44,3 | Q11: 21,4 | R11: =N11-P11*INT(G51) -> 407
N12: =IF($N$5=0,RANDBETWEEN(10^($N$4-1),10^($N$4)-1),CONCATENATE(RANDBETWEEN(10^($N$4-1),10^($N$4)-1),",",RANDBETWEEN(10^($N$5-1),10^($N$5)-1))) -> 702 | P12: =IF($P$5=0,RANDBETWEEN(10^($P$4-1),10^($P$4)-1),CONCATENATE(RANDBETWEEN(10^($P$4-1),10^($P$4)-1),",",RANDBETWEEN(10^($P$5-1),10^($P$5)-1))) -> 31,2 | Q12: 62,1 | R12: =N12-P12*INT(K51) -> 702
N13: 864 | P13: 97,9 | Q13: 48,2 | R13: =N13-P13*INT(C58) -> -93217.9
N14: =IF($N$5=0,RANDBETWEEN(10^($N$4-1),10^($N$4)-1),CONCATENATE(RANDBETWEEN(10^($N$4-1),10^($N$4)-1),",",RANDBETWEEN(10^($N$5-1),10^($N$5)-1))) -> 811 | P14: 23,8 | Q14: 81,4 | R14: =N14-P14*INT(G58) -> 811
N15: 787 | P15: 99,5 | Q15: 48,2 | R15: =N15-P15*INT(K58) -> 787
C17: =IF(O4=Q4,CONCATENATE(N13, " ", O4, " ",Q13),CONCATENATE(N13, " ", O4, " ",P13)) -> 864 + 97,9 | F17: Inventa un problema para esta operación: | N17: 173 | P17: 19,3 | Q17: 26,2 | R17: =N17-P17*INT(C65) -> -3532.6
N18: =IF($N$5=0,RANDBETWEEN(10^($N$4-1),10^($N$4)-1),CONCATENATE(RANDBETWEEN(10^($N$4-1),10^($N$4)-1),",",RANDBETWEEN(10^($N$5-1),10^($N$5)-1))) -> 813 | P18: 63,4 | Q18: 78,3 | R18: =N18-P18*INT(G65) -> 813
N19: 903 | P19: 73,5 | Q19: 14,3 | R19: =N19-P19*INT(K65) -> 903
N20: 261 | P20: 68,9 | Q20: 74,6 | R20: =N20-P20*INT(C72) -> -22407.1
N21: 317 | P21: 94,5 | Q21: 54,7 | R21: =N21-P21*INT(G72) -> 317
N22: =IF($N$5=0,RANDBETWEEN(10^($N$4-1),10^($N$4)-1),CONCATENATE(RANDBETWEEN(10^($N$4-1),10^($N$4)-1),",",RANDBETWEEN(10^($N$5-1),10^($N$5)-1))) -> 854 | P22: 16,9 | Q22: 52,8 | R22: =N22-P22*INT(K72) -> 854
C24: =IF(O4=Q4,CONCATENATE(N17, " ", O4, " ",Q17),CONCATENATE(N17, " ", O4, " ",P17)) -> 173 + 19,3 | F24: Inventa un problema para esta operación:
C31: =IF(O4=Q4,CONCATENATE(N20, " ", O4, " ",Q20),CONCATENATE(N20, " ", O4, " ",P20)) -> 261 + 68,9 | F31: Inventa un problema para esta operación:
E37: RECURSOSEP 2017
E38: www.recursosep.com | J38: F. J. Franco Galvín
B39: SOLUCIONES
C41: =C3 -> 865 + 62,8
C44: =IF(O4=Q3,N6+P6,IF(O4=R3,N6*P6,IF(O4=R1,N6/P6,IF(O4=Q4,N6-Q6,"ERROR")))) -> 927.8
B45: =IF($O$4=$R$1,R6,"") ->  | D45: =IF($O$4=$R$1,INT(C44),"") -> 
C48: =C10 -> 387 + 71,3
C51: =IF(O4=Q3,N10+P10,IF(O4=R3,N10*P10,IF(O4=R1,N10/P10,IF(O4=Q4,N10-Q10,"ERROR")))) -> 458.3
B52: =IF($O$4=$R$1,R10,"") ->  | D52: =IF($O$4=$R$1,INT(C51),"") -> 
C55: =C17 -> 864 + 97,9
C58: =IF(O4=Q3,N13+P13,IF(O4=R3,N13*P13,IF(O4=R1,N13/P13,IF(O4=Q4,N13-Q13,"ERROR")))) -> 961.9
B59: =IF($O$4=$R$1,R13,"") ->  | D59: =IF($O$4=$R$1,INT(C58),"") -> 
C62: =C24 -> 173 + 19,3
C65: =IF(O4=Q3,N17+P17,IF(O4=R3,N17*P17,IF(O4=R1,N17/P17,IF(O4=Q4,N17-Q17,"ERROR")))) -> 192.3
B66: =IF($O$4=$R$1,R17,"") ->  | D66: =IF($O$4=$R$1,INT(C65),"") -> 
C69: =C31 -> 261 + 68,9
C72: =IF(O4=Q3,N20+P20,IF(O4=R3,N20*P20,IF(O4=R1,N20/P20,IF(O4=Q4,N20-Q20,"ERROR")))) -> 329.9
B73: =IF($O$4=$R$1,R20,"") ->  | D73: =IF($O$4=$R$1,INT(C72),"") -> 
E75: RECURSOSEP 2017
E76: www.recursosep.com | J76: F. J. Franco Galvín
